bitfinex/quotes_ETHUSD_20260108
["timestamp","ask_amount","ask_price","bid_price","bid_amount"]
[1767842219216,0.96815756,3162.0,3161.4,0.002]
[1767842219991,0.96815756,3162.0,3161.4,0.93293449]
[1767842220188,4.13052529,3162.2,3161.4,0.93293449]
[1767842220517,0.83,3162.1,3161.4,0.93293449]
[1767842220815,1.79815756,3162.1,3161.4,0.93293449]
[1767842221208,0.83,3162.1,3161.5,0.93093449]
[1767842222491,0.83,3162.1,3161.7,0.002]
[1767842224521,0.94755775,3162.0,3161.7,0.002]
[1767842225211,1.44156029,3162.0,3161.7,0.002]
[1767842231117,0.49400254,3162.0,3161.7,0.002]
[1767842233926,0.49400254,3162.0,3161.7,0.92061412]
[1767842234231,0.83,3162.2,3161.7,0.92061412]
[1767842234739,4.93995268,3162.2,3161.7,0.002]
[1767842236830,0.83,3162.2,3161.7,0.92061412]
[1767842237001,1.77755775,3162.2,3161.7,0.002]
[1767842237204,0.49599537,3162.7,3161.7,0.92061412]
[1767842237422,0.83,3162.6,3161.8,0.91861412]
[1767842237631,0.001,3162.8,3161.8,0.91861412]
[1767842237853,0.83,3162.7,3161.8,0.91861412]
[1767842238145,1.77755775,3162.7,3161.8,0.91861412]
[1767842239222,3.16195535,3162.6,3161.8,0.91861412]
[1767842239422,3.97218618,3162.6,3161.8,0.91861412]
[1767842239821,3.1627952,3162.8,3161.9,0.91861412]
[1767842239822,0.001,3162.8,3161.9,0.91861412]
[1767842240223,3.99216206,3163.4,3162.8,0.91861412]
[1767842240431,0.831,3163.4,3162.8,0.91661413]
[1767842240610,0.001,3163.4,3162.8,0.91661413]
[1767842241016,0.49495825,3163.4,3162.8,0.91661413]
[1767842241261,3.65613117,3163.4,3162.8,0.91661413]
[1767842242257,3.64680638,3163.4,3162.9,0.91861412]
[1767842243163,4.59436413,3163.4,3162.7,0.91861412]
[1767842245730,0.94755775,3163.3,3162.4,0.91861412]
[1767842245928,0.94755775,3163.3,3162.5,1.32669706]
[1767842246129,0.94755775,3163.2,3162.1,4.08100441]
[1767842246438,0.94755775,3163.2,3162.2,0.91861412]
[1767842246822,0.94755775,3163.2,3162.2,0.92061412]
[1767842247962,6.32256611,3163.3,3162.3,0.91861412]
[1767842248155,1.77755775,3163.2,3162.3,0.91861412]
[1767842248351,1.77755775,3163.2,3162.5,0.91861412]
[1767842248556,0.94755775,3163.1,3162.5,0.91861412]
[1767842248951,0.83,3163.2,3162.5,0.91861412]
[1767842249470,1.77755775,3163.3,3162.5,0.91861412]
[1767842250482,4.9388471,3163.3,3162.5,0.91861412]
[1767842250675,0.94755775,3163.2,3162.3,4.08082241]
[1767842251464,0.94755775,3163.2,3162.4,0.91861412]
[1767842251862,0.94755775,3163.2,3162.2,4.08293763]
[1767842252074,0.94755775,3163.2,3162.2,0.92061412]
[1767842252478,0.98138061,3163.0,3162.2,0.92061412]
[1767842252639,0.98138061,3163.0,3162.3,0.40830249]
[1767842253175,0.98138061,3163.0,3162.2,0.002]
[1767842253492,0.98138061,3162.8,3162.2,0.002]
[1767842254175,1.81138061,3162.8,3162.2,0.002]
[1767842254478,0.98138061,3162.7,3162.2,0.002]
[1767842258320,0.98138061,3162.9,3162.2,0.90757602]
[1767842258495,1.81138061,3162.9,3162.2,0.90757602]
[1767842259496,2.3086759,3162.9,3162.2,0.90757602]
[1767842260596,5.47035049,3162.9,3162.2,0.90757602]
[1767842264287,4.64035049,3162.9,3162.2,0.90757602]
[1767842264485,2.3086759,3162.9,3162.2,0.90757602]
[1767842265300,1.4786759,3162.9,3162.2,0.90757602]
[1767842265507,2.3086759,3162.9,3162.2,0.90757602]
[1767842266522,5.47035481,3162.9,3162.2,0.90757602]
[1767842267614,0.98138061,3162.8,3162.2,0.002]
[1767842267817,0.98138061,3162.7,3162.2,0.002]
[1767842268021,0.98138061,3162.5,3161.9,0.002]
[1767842268615,0.98138061,3162.4,3161.9,0.002]
[1767842269621,0.98138061,3162.3,3161.7,0.002]
[1767842269928,0.98138061,3162.2,3161.7,0.002]
[1767842271023,0.98138061,3162.2,3162.0,0.002]
[1767842271233,4.14378995,3162.2,3161.7,0.002]
[1767842271599,0.98138061,3162.1,3161.7,0.002]
[1767842274027,4.14384281,3162.1,3161.7,0.002]
[1767842274210,0.41438428,3162.0,3161.7,0.002]
[1767842274599,0.41438428,3162.0,3161.6,0.002]
[1767842275013,1.39576489,3162.0,3161.6,0.002]
[1767842275601,0.41438428,3162.0,3161.6,0.002]
[1767842276933,0.98138061,3161.9,3161.4,0.002]
[1767842277129,0.45583283,3161.8,3161.4,0.002]
[1767842280237,0.41438428,3162.0,3161.4,0.90757602]
[1767842280407,3.16216819,3162.4,3161.4,0.90757602]
[1767842280607,3.99216819,3162.4,3161.4,0.90757602]
[1767842280806,4.80572576,3162.4,3161.4,0.90757602]
[1767842281106,3.97572576,3162.4,3161.4,0.90757602]
[1767842281327,4.80572576,3162.4,3161.4,0.90757602]
[1767842282232,4.80572576,3162.4,3161.6,0.93048957]
[1767842282603,0.92937573,3162.3,3161.6,0.93048957]
[1767842282908,1.8191027,3162.3,3161.7,0.98000935]
[1767842283104,0.001,3162.1,3161.7,0.98000935]
[1767842283731,0.93037573,3162.1,3161.7,0.002]
[1767842284234,4.09289385,3162.1,3161.7,0.002]
[1767842284427,5.38038496,3162.1,3161.7,0.002]
[1767842285438,0.92937573,3162.0,3161.4,0.002]
[1767842286750,0.92937573,3161.9,3161.4,0.002]
[1767842287423,5.38036851,3162.1,3161.4,0.98000935]
[1767842287630,0.53803685,3162.0,3161.4,0.98000935]
[1767842288936,3.70061132,3162.0,3161.4,0.98000935]
[1767842289435,0.53803685,3162.0,3161.4,0.98000935]
[1767842291534,1.46741258,3162.0,3161.4,0.98000935]
[1767842291836,4.62998743,3162.0,3161.4,0.98000935]
[1767842292026,0.59184785,3161.9,3161.4,0.98000935]
[1767842294833,0.59184785,3161.9,3161.7,0.002]
[1767842295239,0.001,3161.8,3161.7,0.002]
[1767842298952,0.93037573,3161.8,3161.2,1e-08]
[1767842299136,2.18812714,3161.8,3161.2,1e-08]
[1767842299848,0.92937573,3161.6,3160.7,0.98000935]
[1767842301023,4.09243124,3161.5,3160.7,0.98000935]
[1767842301550,0.92937573,3161.4,3160.7,0.98000935]
[1767842301750,0.92937573,3161.4,3160.5,0.002]
[1767842301953,0.92937573,3161.4,3160.2,0.002]
[1767842302123,0.92937573,3161.2,3160.2,0.002]
[1767842302323,0.92937573,3161.0,3160.2,0.98000935]
[1767842302860,1.51555708,3161.3,3160.2,0.98000935]
[1767842303035,1.75937573,3161.2,3160.4,0.97800935]
[1767842303820,0.92937573,3161.1,3160.4,0.97800935]
[1767842304040,0.49227722,3161.0,3160.4,0.97800935]
[1767842304761,1.42165295,3161.0,3160.2,0.98000935]
[1767842305057,0.92937573,3160.9,3160.2,0.98000935]
[1767842305456,0.49227722,3161.0,3160.3,0.97800935]
[1767842305654,0.92937573,3161.1,3160.3,0.97800935]
[1767842306159,4.09284842,3161.1,3160.3,0.97800935]
[1767842306755,0.92937573,3161.0,3160.3,0.97800935]
[1767842307426,0.92937573,3161.0,3160.3,4.14226513]
[1767842307627,3.99339691,3161.2,3160.4,0.97800935]
[1767842307829,0.49237726,3161.1,3160.4,0.97800935]
[1767842308064,1.42175299,3161.1,3160.4,0.97800935]
[1767842308439,1.42175299,3161.1,3160.3,0.97800935]
[1767842308440,0.92937573,3161.0,3160.3,0.97800935]
[1767842309460,3.65585511,3161.1,3160.4,0.97800935]
[1767842309664,4.48585511,3161.1,3160.4,0.97800935]
[1767842309829,0.44858551,3161.0,3160.4,0.97800935]
[1767842310656,1.37796124,3161.0,3160.4,0.97800935]
[1767842311640,4.54152427,3161.0,3160.4,0.97800935]
[1767842312062,1.37796124,3161.0,3160.4,0.97800935]
[1767842312264,4.54152486,3161.0,3160.4,0.97800935]
[1767842312430,0.58639021,3160.9,3160.4,0.97800935]
[1767842314933,1.54628478,3160.9,3160.2,0.97297419]
[1767842315133,0.95989457,3160.9,3160.2,4.13732977]
[1767842315438,4.12356436,3160.9,3160.3,0.97097419]
[1767842315636,4.12356436,3160.9,3160.2,0.002]
[1767842315637,0.95989457,3160.7,3160.2,0.002]
[1767842316945,6.3276518,3160.8,3160.0,0.002]
[1767842316946,0.95989457,3160.5,3160.0,0.002]
[1767842317648,4.124051,3160.4,3159.8,0.97097419]
[1767842318146,0.95989457,3160.3,3159.6,0.97297419]
[1767842318587,0.95989457,3160.3,3159.7,0.97097419]
[1767842318753,3.7966458,3160.7,3159.9,0.97097419]
[1767842319057,0.47565404,3160.6,3159.9,0.97097419]
[1767842319362,0.83,3161.0,3159.9,0.97097419]
[1767842319573,0.95989457,3160.9,3159.9,0.97097419]
[1767842319931,0.95989457,3160.9,3160.0,3.16455696]
[1767842320136,0.95989457,3160.9,3160.1,0.97097419]
[1767842321861,1.78989457,3160.9,3160.1,0.97097419]
[1767842322062,0.95989457,3160.8,3160.1,0.97097419]
[1767842323671,0.95989457,3160.8,3160.1,4.13542452]
[1767842323859,0.95989457,3160.8,3160.2,0.97097419]
[1767842325345,0.95989457,3160.7,3160.0,0.97097419]
[1767842326271,0.95989457,3160.7,3160.0,4.1355221]
[1767842326481,0.95989457,3160.7,3160.0,0.97097419]
[1767842326665,1.45525983,3160.7,3160.0,0.97097419]
[1767842327168,0.95989457,3160.6,3160.0,0.97097419]
[1767842327761,0.95989457,3160.6,3159.9,3.1646152]
[1767842327762,0.95989457,3160.6,3159.8,3.16473426]
[1767842328466,0.95989457,3160.6,3159.6,4.13791145]
[1767842328670,0.95989457,3160.6,3159.6,7.30286903]
[1767842328877,0.95989457,3160.6,3159.6,8.11615593]
[1767842329258,0.95989457,3160.6,3159.7,0.97097419]
[1767842329655,0.95989457,3160.5,3159.7,0.97097419]
[1767842330761,0.95989457,3160.5,3159.7,4.13579338]
[1767842331782,0.95989457,3160.4,3159.6,3.16692775]
[1767842332087,0.95989457,3160.2,3159.6,0.002]
[1767842333353,0.95989457,3160.1,3159.6,0.002]
[1767842336263,0.831,3160.4,3159.1,0.002]
[1767842336264,0.95989457,3159.9,3159.1,0.002]
[1767842336485,0.95989457,3159.7,3159.1,0.002]
[1767842337563,4.12485215,3159.6,3159.1,0.002]
[1767842338099,0.95989457,3159.6,3159.1,0.002]
[1767842339104,0.95989457,3160.2,3159.1,0.97297419]
[1767842339392,0.831,3160.1,3159.1,0.97297419]
[1767842339706,4.49103879,3160.1,3159.3,0.97097419]
[1767842340200,0.49552822,3160.1,3159.3,0.97097419]
[1767842340409,0.831,3160.1,3159.3,0.97097419]
[1767842340762,3.99546831,3160.1,3159.3,0.97097419]
[1767842340982,0.95989457,3160.0,3159.3,0.97097419]
[1767842341575,0.95989457,3160.0,3159.1,0.97297419]
[1767842341885,4.12448164,3160.0,3159.2,0.97097419]
[1767842342095,1.4693832,3159.9,3159.6,0.002]
[1767842343501,0.49554816,3159.9,3159.6,0.002]
[1767842343683,1.82685226,3160.1,3159.6,0.002]
[1767842343885,0.99585226,3160.1,3159.6,0.002]
[1767842344088,0.831,3160.0,3159.6,0.97031968]
[1767842344810,0.831,3160.0,3159.6,0.002]
[1767842345506,0.832,3160.2,3159.6,0.97031968]
[1767842347004,1.33120209,3160.2,3159.6,0.97031968]
[1767842352300,0.832,3160.2,3159.6,0.97031968]
[1767842354914,0.001,3160.2,3159.7,0.96831968]
[1767842355292,0.001,3159.9,3159.7,0.96831968]
[1767842355499,0.001,3160.2,3159.7,0.96831968]
[1767842356319,0.001,3160.2,3159.8,4.13307694]
[1767842356499,0.001,3160.2,3159.8,4.86307964]
[1767842356898,0.001,3160.2,3159.8,1.69832238]
[1767842358517,0.001,3160.2,3159.8,4.86304922]
[1767842358816,0.001,3160.6,3160.2,0.96831968]
[1767842359212,0.001,3160.6,3160.0,0.96831968]
[1767842361127,0.001,3160.6,3160.2,0.96831968]
[1767842363095,0.001,3160.6,3160.2,4.13266806]
[1767842364107,0.001,3160.6,3160.2,0.96831968]
[1767842365132,0.001,3160.6,3160.4,0.96831968]
[1767842366029,0.001,3160.6,3160.3,3.16419337]
[1767842370139,0.001,3160.6,3160.3,4.13251305]
[1767842371012,0.001,3160.6,3160.1,3.16440495]
[1767842372441,0.001,3160.6,3160.0,4.13285242]
[1767842372642,0.001,3160.6,3160.1,3.6799845]
[1767842373036,0.99892786,3160.6,3160.1,3.16445682]
[1767842373538,0.99892786,3160.6,3160.0,3.16452307]
[1767842373745,0.99892786,3160.6,3159.9,3.16462466]
[1767842374729,0.99892786,3160.6,3159.8,3.16473647]
[1767842374910,0.99792786,3160.4,3159.7,3.16478575]
[1767842375638,0.99792786,3160.4,3159.6,4.08152985]
[1767842376146,0.99792786,3160.4,3159.7,4.0794505]
[1767842376333,0.99792786,3160.4,3159.8,3.16475551]
[1767842376645,1.18092065,3160.4,3159.7,0.91460968]
[1767842376842,1.18092065,3160.4,3159.7,4.07938815]
[1767842378337,0.99792786,3160.4,3160.0,0.002]
[1767842378724,0.001,3160.3,3160.0,0.002]
[1767842381030,0.001,3160.3,3160.0,0.91660968]
[1767842381344,0.001,3160.6,3160.3,0.91460968]
[1767842381650,0.99792786,3161.0,3160.3,0.91460968]
[1767842382341,0.99792786,3161.0,3160.3,1.63894198]
[1767842383444,0.99792786,3161.0,3160.1,4.07902117]
[1767842383652,0.99792786,3160.9,3160.2,3.16433955]
[1767842384144,0.99792786,3160.9,3160.3,3.1642429]
[1767842384846,0.99792786,3160.9,3160.2,3.16432749]
[1767842385942,0.99792786,3160.9,3160.1,6.32891364]
[1767842386175,0.99792786,3160.9,3160.2,0.72455233]
[1767842387334,0.99792786,3160.9,3160.2,1.63916201]
[1767842387538,0.001,3161.3,3160.4,0.91460968]
[1767842387847,0.001,3161.3,3160.3,4.73754936]
[1767842387848,0.001,3161.3,3160.6,0.91460968]
[1767842388322,0.99792786,3161.6,3161.0,0.91460968]
[1767842388523,0.99792786,3161.6,3160.7,0.91460968]
[1767842388725,0.831,3161.7,3160.8,0.91460968]
[1767842389852,0.831,3161.7,3161.0,0.91460968]
[1767842390355,1.82892786,3161.7,3161.0,0.91460968]
[1767842391634,4.99178708,3161.7,3161.0,0.91460968]
[1767842391935,0.99792786,3161.6,3160.8,4.07832943]
[1767842392135,0.99792786,3161.5,3160.8,4.07832943]
[1767842394529,0.99792786,3161.5,3160.8,0.91460968]
[1767842394731,0.99792786,3161.5,3160.8,4.07835673]
[1767842395558,0.99792786,3161.5,3160.9,0.91460968]
[1767842395739,0.99792786,3161.5,3160.9,4.0781723]
[1767842396459,0.99792786,3161.5,3160.9,4.80236424]
[1767842396666,0.83,3161.7,3161.0,0.91460968]
[1767842396955,0.99792786,3161.6,3161.0,0.91460968]
[1767842400062,0.99792786,3161.6,3160.8,0.91460968]
[1767842400440,0.001,3161.8,3160.8,0.91460968]
[1767842400645,0.001,3161.8,3161.0,0.91460968]
[1767842401951,0.001,3161.8,3161.2,0.93960741]
[1767842402351,0.001,3161.8,3161.3,0.002]
[1767842402562,0.001,3161.8,3161.3,0.91462208]
[1767842402764,0.001,3162.1,3161.7,0.91262208]
[1767842403174,0.96984004,3162.1,3161.3,0.002]
[1767842403474,0.96984004,3162.1,3161.3,0.63489115]
[1767842403759,0.96984004,3162.1,3161.4,0.91262208]
[1767842404156,0.96984004,3162.1,3161.4,4.07576642]
[1767842405050,0.96984004,3162.1,3161.3,0.002]
[1767842405051,0.96884004,3162.0,3161.3,0.002]
[1767842405369,0.96884004,3161.8,3161.3,0.002]
[1767842405569,0.96884004,3161.6,3161.0,0.002]
[1767842406569,0.96884004,3161.5,3161.0,0.002]
[1767842409470,0.96884004,3161.4,3161.0,0.002]
[1767842409776,0.96884004,3161.2,3161.0,0.002]
[1767842410157,1.79884004,3161.2,3161.0,0.002]
[1767842411285,0.96884004,3161.1,3160.5,0.91262208]
[1767842411490,0.96884004,3161.1,3160.5,4.07663536]
[1767842412869,0.96884004,3161.1,3160.5,0.91262208]
[1767842413094,1.14872404,3161.1,3160.5,0.91262208]
[1767842413260,1.14872404,3161.1,3160.4,3.16411969]
[1767842413656,1.14872404,3161.1,3160.4,0.91262208]
[1767842413890,0.96884004,3161.1,3160.4,0.91262208]
[1767842414294,0.83,3161.2,3160.4,0.91262208]
[1767842414594,1.79884004,3161.2,3160.4,0.91262208]
[1767842414892,1.79884004,3161.2,3160.8,0.002]
[1767842424084,0.96884004,3161.4,3160.8,0.002]
[1767842424268,0.83,3161.3,3160.8,0.002]
[1767842427291,1.79884004,3161.3,3160.8,0.002]
[1767842428163,0.96884004,3161.2,3160.8,0.002]
[1767842430094,1.79884004,3161.3,3160.8,0.002]
[1767842431211,0.41318217,3161.4,3160.8,0.91462208]
[1767842431369,3.16190984,3162.7,3160.8,0.91462208]
[1767842431370,0.83,3161.3,3160.8,0.91462208]
[1767842431569,0.83,3161.6,3160.9,0.91262208]
[1767842432283,0.001,3161.8,3160.9,0.91262208]
[1767842433196,0.001,3161.8,3161.1,0.99076745]
[1767842433497,0.9031194,3161.8,3161.1,0.99076745]
[1767842433702,0.9031194,3161.8,3161.2,0.41543233]
[1767842433879,0.9031194,3161.8,3161.2,1.40619978]
[1767842434882,0.001,3161.8,3161.2,1.40619978]
[1767842435385,0.9031194,3161.8,3161.2,1.40619978]
[1767842435994,0.9031194,3161.8,3161.0,3.16350073]
[1767842436497,0.9031194,3161.8,3161.0,4.15426818]
[1767842437078,0.9031194,3161.8,3161.0,0.99076745]
[1767842437305,0.9021194,3161.6,3160.8,4.88074885]
[1767842437603,0.9021194,3161.4,3160.8,0.72625345]
[1767842439107,0.9021194,3161.4,3160.8,3.88997293]
[1767842439282,0.9021194,3161.4,3160.9,0.48807404]
[1767842439477,0.9021194,3161.4,3160.8,0.002]
[1767842441005,0.9021194,3161.3,3160.8,0.002]
[1767842441799,1.7331194,3161.5,3160.8,0.99276745]
[1767842442310,4.89618114,3161.5,3160.8,0.99276745]
[1767842442510,0.9021194,3161.4,3160.8,0.99276745]
[1767842442706,0.83,3161.3,3160.8,0.99276745]
[1767842443414,2.22173751,3161.3,3160.8,0.002]
[1767842448327,0.9021194,3161.2,3160.8,0.002]
[1767842453433,0.83,3161.3,3160.8,0.002]
[1767842455133,1.7321194,3161.3,3160.8,0.002]
[1767842457637,0.9021194,3161.2,3160.8,0.002]
[1767842457945,0.9021194,3161.2,3160.5,0.002]
[1767842457946,0.9021194,3161.0,3160.5,0.002]
[1767842459326,0.9021194,3161.0,3160.0,0.99276745]
[1767842459512,0.9021194,3161.0,3160.0,0.002]
[1767842460019,0.9021194,3160.8,3160.0,0.002]
[1767842460327,0.9021194,3160.6,3160.0,0.002]
[1767842462551,0.9021194,3160.6,3160.3,0.002]
[1767842463339,0.91525813,3160.5,3160.3,0.002]
[1767842463651,0.91525813,3160.5,3160.0,0.002]
[1767842464638,4.07934897,3160.5,3160.0,0.002]
[1767842464837,0.4079349,3160.4,3160.0,0.002]
[1767842467238,1.32319303,3160.4,3160.0,0.002]
[1767842467444,0.91525813,3160.4,3160.0,0.002]
[1767842468125,0.91525813,3161.0,3160.0,0.96060256]
[1767842468439,1.74525813,3160.8,3160.1,4.12305938]
[1767842468923,1.74525813,3160.8,3160.2,0.95860256]
[1767842469111,1.91978394,3160.8,3160.2,0.95860256]
[1767842469441,1.00452581,3160.8,3160.2,0.95860256]
[1767842470322,0.17452581,3160.8,3160.3,0.95860256]
[1767842470534,0.91525813,3160.9,3160.3,0.95860256]
[1767842470836,0.831,3161.0,3160.3,0.95860256]
[1767842472622,0.91525813,3160.9,3160.3,0.95860256]
[1767842472821,0.91525813,3160.9,3160.1,4.12302942]
[1767842473236,0.91525813,3160.9,3160.2,0.95860256]
[1767842474432,0.91525813,3160.9,3160.3,0.002]
[1767842474655,0.91525813,3160.8,3160.3,0.002]
[1767842474833,0.001,3160.7,3160.3,0.002]
[1767842475235,0.91625813,3160.7,3160.3,0.002]
[1767842476852,0.001,3160.7,3160.3,0.002]
[1767842477023,0.001,3160.7,3160.3,0.96060256]
[1767842477522,3.1512999,3161.6,3160.5,0.95860256]
[1767842477725,0.91525813,3161.4,3160.5,0.95860256]
[1767842478122,0.831,3161.4,3160.5,0.95860256]
[1767842478317,0.91525813,3161.6,3160.5,0.95860256]
[1767842478318,0.831,3161.5,3160.5,0.95860256]
[1767842478953,1.74625813,3161.5,3160.7,0.95860256]
[1767842479153,0.91525813,3161.4,3160.8,0.41225588]
[1767842480486,0.91525813,3161.4,3160.3,1.68955373]
[1767842480676,0.91525813,3161.4,3160.3,0.002]
[1767842481248,0.91525813,3161.2,3160.3,0.002]
[1767842482549,0.91525813,3161.0,3160.3,0.002]
[1767842482752,0.91525813,3160.8,3160.3,0.002]
[1767842485249,0.91525813,3160.7,3160.3,0.002]
[1767842485450,0.91525813,3160.6,3160.3,0.002]
[1767842487265,0.91525813,3160.6,3160.0,0.002]
[1767842487463,0.91525813,3160.5,3160.0,0.002]
[1767842488590,0.91525813,3160.7,3160.0,0.96060256]
[1767842490477,0.91525813,3160.7,3160.1,0.95860256]
[1767842491602,0.91525813,3160.7,3160.1,1.68757842]
[1767842491894,4.07874146,3161.1,3160.2,0.95860256]
[1767842492093,0.831,3160.8,3160.2,0.95860256]
[1767842493373,0.98547639,3160.7,3160.0,0.002]
[1767842494661,0.98547639,3160.7,3160.0,3.16650451]
[1767842494896,0.98547639,3160.7,3160.1,0.40839921]
[1767842495577,0.98547639,3160.7,3160.1,3.57285233]
[1767842495895,0.98547639,3160.7,3160.1,0.40839921]
[1767842496894,0.98547639,3160.7,3160.1,3.57284812]
[1767842497095,0.831,3160.7,3160.2,0.91748759]
[1767842497400,0.831,3160.7,3160.3,0.91748759]
[1767842498601,0.831,3160.8,3160.3,0.91748759]
[1767842498999,0.98547639,3160.9,3160.3,0.91748759]
[1767842499177,0.831,3160.8,3160.4,0.002]
[1767842499374,0.98547639,3160.9,3160.4,0.002]
[1767842499791,0.831,3160.8,3160.4,0.002]
[1767842504307,0.831,3160.8,3160.4,0.91948759]
[1767842505008,0.831,3160.8,3160.4,0.002]
[1767842506597,0.831,3160.8,3160.4,0.91948759]
[1767842507684,0.831,3160.8,3160.4,4.08362021]
[1767842508008,0.831,3160.8,3160.4,0.91948759]
[1767842508311,0.831,3160.8,3160.4,4.08360339]
[1767842509384,0.831,3160.8,3160.5,0.91748759]
[1767842509894,0.831,3161.0,3160.5,4.48989107]
[1767842510710,0.98547639,3161.4,3160.6,0.91748759]
[1767842511003,0.831,3161.3,3160.6,0.91748759]
[1767842511507,0.98547639,3161.2,3160.5,0.40836034]
[1767842511691,0.98547639,3161.2,3160.4,0.91948759]
[1767842511894,0.98547639,3161.0,3160.4,0.91948759]
[1767842517525,0.98547639,3161.0,3160.4,4.08361405]
[1767842518230,0.98547639,3161.2,3160.5,0.91748759]
[1767842520233,0.98547639,3161.2,3160.5,4.08150106]
[1767842520735,0.98547639,3161.2,3160.4,0.002]
[1767842521638,0.98547639,3161.1,3160.4,0.002]
[1767842521943,0.98547639,3161.1,3160.4,3.16615361]
[1767842522107,0.98547639,3161.1,3160.4,0.94373079]
[1767842523146,0.99308703,3161.0,3160.4,0.002]
[1767842523606,0.99308703,3160.8,3160.4,0.002]
[1767842523936,0.99308703,3160.7,3160.4,0.002]
[1767842526513,1.17549573,3160.7,3160.4,0.002]
[1767842528019,0.83,3160.8,3160.4,0.002]
[1767842528947,1.82308703,3160.8,3160.4,0.002]
[1767842529129,0.83,3160.7,3160.4,0.002]
[1767842530539,0.99408703,3160.9,3160.4,0.002]
[1767842530729,0.83,3160.8,3160.4,0.002]
[1767842535146,1.82308703,3160.8,3160.4,0.002]
[1767842535658,0.001,3160.5,3160.4,0.002]
[1767842555958,0.001,3160.9,3160.5,0.9793956]
[1767842556278,0.98022528,3160.7,3160.4,0.002]
[1767842556570,0.831,3160.8,3160.4,0.9813956]
[1767842560273,0.831,3160.8,3160.4,0.002]
[1767842570471,0.831,3160.8,3160.4,0.9813956]
[1767842570678,0.831,3160.8,3160.4,1.7124041]
[1767842571286,0.001,3160.5,3160.4,1.7124041]
[1767842571488,1.81122528,3160.8,3160.4,0.7330085]
[1767842571782,0.98022528,3160.7,3160.4,0.7330085]
[1767842573690,0.98022528,3160.7,3160.4,0.002]
[1767842576463,0.831,3160.8,3160.4,0.002]
[1767842576965,1.81122528,3160.9,3160.4,0.002]
[1767842577708,0.98122528,3160.9,3160.4,0.002]
[1767842577871,1.81122528,3160.9,3160.4,0.002]
[1767842580498,1.81122528,3160.9,3160.4,0.73299884]
[1767842580701,1.81122528,3160.9,3160.4,3.89712868]
[1767842581576,0.831,3160.9,3160.4,4.87652428]
[1767842582586,0.831,3160.9,3160.4,1.71239444]
[1767842582897,1.78861194,3160.9,3160.4,0.002]
[1767842583202,0.001,3160.6,3160.4,0.002]
[1767842585987,0.95761194,3160.8,3160.4,0.002]
[1767842588977,0.831,3160.9,3160.4,0.002]
[1767842589588,1.78861194,3160.9,3160.4,0.002]
[1767842589787,0.95761194,3160.8,3160.4,0.002]
[1767842590916,0.831,3160.9,3160.4,0.95447786]
[1767842591099,0.831,3160.9,3160.4,1.68278427]
[1767842592594,0.831,3160.9,3160.4,4.84692819]
[1767842592816,0.831,3160.9,3160.4,1.68278427]
[1767842593216,1.78861194,3160.9,3160.4,0.73030641]
[1767842593541,0.95761194,3160.8,3160.4,0.73030641]
[1767842594105,0.95761194,3160.8,3160.4,0.002]
[1767842594642,0.001,3160.6,3160.4,0.002]
[1767842594932,0.001,3160.6,3160.0,0.002]
[1767842594933,0.95761194,3160.5,3160.0,0.002]
[1767842595705,1.78761194,3160.4,3160.0,0.002]
[1767842598629,0.95761194,3160.3,3160.0,0.002]
[1767842607436,0.95761194,3160.2,3159.7,0.002]
[1767842610334,0.95761194,3160.1,3159.7,0.002]
[1767842615243,0.831,3160.0,3159.7,0.002]
[1767842615637,1.76719122,3160.0,3159.7,0.002]
[1767842615827,2.26035381,3160.0,3159.7,0.002]
[1767842616928,1.76719122,3160.0,3159.7,0.002]
[1767842618750,0.93619122,3159.9,3159.7,0.002]
[1767842623126,0.831,3159.9,3159.7,0.002]
[1767842625152,1.76719122,3159.9,3159.7,0.002]
[1767842626133,0.93619122,3159.9,3159.7,0.002]
[1767842626341,1.76719122,3159.9,3159.7,0.002]
[1767842628649,0.831,3159.9,3159.7,0.002]
[1767842628857,0.831,3159.9,3159.7,0.93065001]
[1767842629248,0.831,3160.1,3159.7,0.93065001]
[1767842630357,0.93619122,3160.3,3159.7,0.93065001]
[1767842630536,0.93619122,3159.9,3159.6,0.002]
[1767842630741,0.93619122,3159.9,3159.3,0.002]
[1767842631132,0.93619122,3159.9,3159.0,3.16750355]
[1767842631133,0.93619122,3159.7,3159.0,0.002]
[1767842632670,0.93619122,3159.5,3159.0,0.002]
[1767842632868,1.76719122,3159.4,3159.0,0.002]
[1767842634654,0.93619122,3159.3,3159.0,0.002]
[1767842638393,0.831,3159.4,3159.0,0.002]
[1767842639479,1.32421488,3159.4,3159.0,0.002]
[1767842639685,4.10102128,3159.8,3159.0,0.93065001]
[1767842639887,0.831,3159.7,3159.0,0.93065001]
[1767842640286,0.831,3159.6,3159.0,0.93065001]
[1767842641596,0.831,3159.6,3159.1,0.92865001]
[1767842641811,0.93619122,3160.1,3159.1,0.92865001]
[1767842641987,5.68925488,3160.5,3159.0,3.16752749]
[1767842641988,0.831,3160.0,3159.3,0.92865001]
[1767842642163,0.92932036,3160.5,3159.3,0.92865001]
[1767842642379,0.001,3159.8,3159.3,0.92865001]
[1767842644021,0.001,3159.8,3159.5,0.96276791]
[1767842646964,0.001,3159.8,3159.5,4.12782191]
[1767842652026,0.001,3159.8,3159.5,7.29287967]
[1767842652193,0.001,3159.8,3159.6,0.96276791]
[1767842653794,0.001,3159.8,3159.6,4.12771805]
[1767842654793,0.001,3159.8,3159.6,0.96276791]
[1767842655335,0.001,3159.8,3159.2,1.37238566]
[1767842655488,0.001,3159.8,3159.4,3.16509341]
[1767842656129,0.001,3159.8,3159.3,0.96276791]
[1767842658337,0.001,3159.8,3159.4,3.16515794]
[1767842661849,0.001,3159.8,3159.1,0.96276791]
[1767842661850,0.92727907,3159.8,3159.1,0.96276791]
[1767842664543,0.92727907,3159.8,3159.0,0.002]
[1767842664869,0.92727907,3159.8,3159.2,6.33071662]
[1767842665171,0.92727907,3159.8,3159.2,7.29348453]
[1767842666069,0.001,3159.5,3159.2,7.29348453]
[1767842667561,0.92727907,3159.8,3159.2,6.33071662]
[1767842667964,0.92727907,3159.8,3159.2,3.16535831]
[1767842668266,0.92727907,3159.8,3159.2,3.89362758]
[1767842668464,0.92727907,3159.8,3159.2,7.05898589]